bitfinex/quotes_ETHUSD_20250908
["timestamp","ask_amount","ask_price","bid_price","bid_amount"]
[1757368666072,8.96443454,4318.5,4318.4,0.2897]
[1757368666454,8.96343454,4318.5,4318.4,0.6128]
[1757368667878,8.96339927,4318.5,4318.4,0.6128]
[1757368669335,8.96339927,4318.5,4318.4,0.2897]
[1757368669495,5.10239927,4318.5,4318.4,0.2897]
[1757368669701,8.96339927,4318.5,4318.4,0.2897]
[1757368672760,8.96339927,4318.5,4318.4,0.002]
[1757368672932,9.45149927,4318.5,4318.4,0.002]
[1757368673260,8.96339927,4318.5,4318.4,0.002]
[1757368673675,8.96339927,4318.5,4318.4,0.2897]
[1757368679242,10.21499927,4318.5,4318.4,0.002]
[1757368680587,11.70635362,4318.5,4318.4,0.002]
[1757368680890,12.18006868,4318.5,4318.4,0.002]
[1757368681501,8.31906868,4318.5,4318.4,0.002]
[1757368681797,12.18006868,4318.5,4318.4,0.002]
[1757368685180,9.92826868,4318.5,4318.4,0.002]
[1757368687194,9.63856868,4318.5,4318.4,0.002]
[1757368687365,9.15046868,4318.5,4318.4,0.002]
[1757368688301,9.63976868,4318.5,4318.4,0.002]
[1757368688496,9.63997951,4318.5,4318.4,0.002]
[1757368689397,9.85694125,4318.5,4318.4,0.002]
[1757368690167,9.85594125,4318.5,4318.4,0.002]
[1757368690979,5.99594125,4318.5,4318.4,0.002]
[1757368691204,9.85594125,4318.5,4318.4,0.002]
[1757368692788,5.99594125,4318.5,4318.4,0.002]
[1757368693023,9.85594125,4318.5,4318.4,0.002]
[1757368696641,10.15184125,4318.5,4318.4,0.002]
[1757368697145,10.15197276,4318.5,4318.4,0.002]
[1757368699544,9.14981102,4318.5,4318.4,0.002]
[1757368699844,7.18465667,4318.5,4318.4,0.002]
[1757368700140,7.67395667,4318.5,4318.4,0.002]
[1757368700498,3.81395667,4318.5,4318.4,0.002]
[1757368700705,7.18465667,4318.5,4318.4,0.2893]
[1757368701115,3.32465667,4318.5,4318.4,0.2893]
[1757368701420,6.39265667,4318.5,4318.4,0.2893]
[1757368702420,6.39265667,4318.5,4318.4,0.002]
[1757368704295,6.88195667,4318.5,4318.4,0.002]
[1757368704501,6.88192372,4318.5,4318.4,0.002]
[1757368705316,7.34812372,4318.5,4318.4,0.002]
[1757368708412,7.34810914,4318.5,4318.4,0.002]
[1757368711354,6.39260914,4318.5,4318.4,0.002]
[1757368712078,6.86960914,4318.5,4318.4,0.002]
[1757368713697,6.86860914,4318.5,4318.4,0.002]
[1757368715210,0.6939903,4318.5,4318.4,0.002]
[1757368715498,4.0759903,4318.5,4318.4,0.002]
[1757368716346,0.2169903,4318.5,4318.4,0.3121]
[1757368716763,0.2169903,4318.5,4318.4,1.33004736]
[1757368716965,0.2169903,4318.5,4318.4,3.64571983]
[1757368717497,0.001,4318.8,4318.5,3.0]
[1757368717702,0.001,4318.8,4318.7,2.31551161]
[1757368717884,0.001,4318.8,4318.7,2.62561161]
[1757368718052,0.001,4318.8,4318.7,2.94871161]
[1757368718249,0.001,4318.8,4318.7,3.06491161]
[1757368720978,0.001,4318.8,4318.7,2.74181161]
[1757368721692,0.001,4318.8,4318.7,0.4263]
[1757368721893,0.001,4318.8,4318.7,2.74181161]
[1757368724336,0.001,4318.8,4318.7,0.4263]
[1757368725602,0.001,4318.8,4318.7,7.84191161]
[1757368725929,0.001,4318.8,4318.7,7.95711161]
[1757368727053,0.001,4318.8,4318.7,9.19381262]
[1757368727208,0.001,4318.8,4318.7,7.95711161]
[1757368728328,0.001,4318.8,4318.7,9.18989132]
[1757368730048,0.001,4318.8,4318.7,7.95711161]
[1757368740299,0.001,4318.8,4318.7,9.18989132]
[1757368743308,0.001,4318.8,4318.7,7.95711161]
[1757368744917,0.001,4318.8,4318.7,7.63401161]
[1757368745923,0.001,4318.8,4318.7,7.95711161]
[1757368747188,0.001,4319.0,4318.9,2.31540438]
[1757368747387,0.001,4319.0,4318.9,9.19455842]
[1757368747630,0.001,4319.0,4318.9,9.17140438]
[1757368747856,0.001,4319.0,4318.9,9.89551058]
[1757368748156,1e-08,4319.4,4319.2,5.31524356]
[1757368748374,1e-08,4319.4,4319.3,6.855]
[1757368748632,0.46400001,4319.4,4319.3,9.28538996]
[1757368748832,1e-08,4319.4,4319.3,9.28538996]
[1757368749342,1e-08,4319.4,4319.3,9.47858996]
[1757368752512,1e-08,4319.4,4319.3,9.17018996]
[1757368753348,1.23740001,4319.4,4319.3,9.17018996]
[1757368754214,0.77340001,4319.4,4319.3,10.81519508]
[1757368754405,1.23740001,4319.4,4319.3,5.31518996]
[1757368754602,1.23740001,4319.4,4319.3,9.17018996]
[1757368755004,1.23740001,4319.4,4319.3,6.17018996]
[1757368755213,1.23740001,4319.4,4319.3,2.31518996]
[1757368755529,1.23740001,4319.4,4319.3,9.17018996]
[1757368757622,1.23740001,4319.4,4319.3,5.31518996]
[1757368757959,1.23740001,4319.4,4319.3,9.16918996]
[1757368759058,1.23740001,4319.4,4319.3,5.31518996]
[1757368759266,1.23740001,4319.4,4319.3,10.5204572]
[1757368759817,1.23740001,4319.4,4319.3,6.6664572]
[1757368760019,1.23740001,4319.4,4319.3,10.5204572]
[1757368762136,1e-08,4319.4,4319.3,10.7136572]
[1757368762336,1e-08,4319.4,4319.3,9.47758996]
[1757368763173,1e-08,4319.4,4319.3,11.12259508]
[1757368764861,1e-08,4319.4,4319.3,11.44569508]
[1757368765045,1e-08,4319.4,4319.3,11.12259508]
[1757368765442,0.025,4319.8,4319.7,2.31497557]
[1757368765644,0.025,4319.8,4319.7,7.94597557]
[1757368765933,0.025,4319.8,4319.7,10.94597557]
[1757368766134,0.025,4319.8,4319.7,11.42067557]
[1757368768073,0.025,4319.8,4319.7,11.72907557]
[1757368770482,0.025,4319.8,4319.7,11.42067557]
[1757368770896,0.4997,4319.8,4319.7,11.42067557]
[1757368771990,0.9357,4319.8,4319.7,11.42067557]
[1757368772326,0.804,4319.8,4319.7,11.53587557]
[1757368772625,1.24,4319.8,4319.7,11.53587557]
[1757368772833,0.804,4319.8,4319.7,11.65255006]
[1757368773036,0.4997,4319.8,4319.7,11.65255006]
[1757368773243,0.025,4319.8,4319.7,11.96155006]
[1757368775370,0.026,4319.8,4319.7,11.96155006]
[1757368778132,0.026,4319.8,4319.7,11.65255006]
[1757368778437,0.026,4319.8,4319.7,11.96155006]
[1757368780162,0.026,4319.8,4319.7,11.65255006]
[1757368782155,0.813,4319.8,4319.7,11.65255006]
[1757368782283,1.249,4319.8,4319.7,11.65255006]
[1757368783424,0.5087,4319.8,4319.7,11.65255006]
[1757368788562,1.249,4319.8,4319.7,11.65255006]
[1757368790566,1.249,4319.8,4319.7,13.29755518]
[1757368792274,0.813,4319.8,4319.7,13.29755518]
[1757368792425,0.5087,4319.8,4319.7,11.65255006]
[1757368793260,1.249,4319.8,4319.7,11.65255006]
[1757368801411,0.813,4319.8,4319.7,11.65255006]
[1757368802409,0.5087,4319.8,4319.7,11.88405006]
[1757368802706,0.4396,4320.1,4319.8,3.0]
[1757368802913,8.61,4320.2,4320.0,3.0]
[1757368803058,8.61,4320.2,4320.1,9.16776123]
[1757368803407,8.9195,4320.2,4320.1,9.16776123]
[1757368803609,9.3591,4320.2,4320.1,9.16776123]
[1757368803980,9.3591,4320.2,4320.1,10.94376123]
[1757368804907,9.8434,4320.2,4320.1,10.94376123]
[1757368805658,9.4038,4320.2,4320.1,10.94376123]
[1757368805864,8.61,4320.2,4320.1,10.94376123]
[1757368806099,8.61,4320.2,4320.1,11.23966123]
[1757368806627,8.61,4320.2,4320.1,10.94376123]
[1757368806762,0.4843,4321.0,4320.2,5.31470765]
[1757368807108,0.4843,4321.0,4320.7,2.31443978]
[1757368807257,0.4843,4321.0,4320.7,9.16643978]
[1757368807854,0.4843,4321.0,4320.7,9.86074199]
[1757368808228,0.9239,4321.0,4320.7,9.86074199]
[1757368808502,0.7741,4320.8,4320.7,9.86074199]
[1757368808806,0.7741,4320.8,4320.7,6.00874199]
[1757368809105,0.7741,4320.8,4320.7,11.63674199]
[1757368812203,0.7751,4320.8,4320.7,11.63674199]
[1757368812409,0.7751,4320.8,4320.7,12.17735355]
[1757368812410,1.2594,4320.8,4320.7,12.17735355]
[1757368812614,1.2594,4320.8,4320.7,10.94243978]
[1757368813186,0.026,4320.8,4320.7,10.94243978]
[1757368813564,0.026,4320.8,4320.7,11.23833978]
[1757368814442,0.026,4320.8,4320.7,10.94243978]
[1757368815495,0.026,4320.8,4320.7,11.23833978]
[1757368816893,0.026,4320.8,4320.7,11.35353978]
[1757368817586,1e-08,4320.9,4320.8,5.31438622]
[1757368817786,1e-08,4320.9,4320.8,8.06484625]
[1757368817985,1e-08,4320.9,4320.8,6.41638622]
[1757368818419,1e-08,4320.9,4320.8,8.06070573]
[1757368818577,1e-08,4320.9,4320.8,6.41638622]
[1757368819176,1e-08,4320.9,4320.8,8.06022534]
[1757368820422,1e-08,4320.9,4320.8,6.09328622]
[1757368822395,1e-08,4320.9,4320.8,5.61028622]
[1757368822594,1e-08,4320.9,4320.8,6.41638622]
[1757368823257,1e-08,4320.9,4320.8,6.09328622]
[1757368823954,2.46,4321.7,4321.6,2.31395779]
[1757368824245,3.2091,4321.7,4321.6,11.05615779]
[1757368824402,3.2091,4321.7,4321.6,12.28820963]
[1757368824603,3.2091,4321.7,4321.6,11.75028168]
[1757368824819,2.7695,4321.7,4321.6,11.75028168]
[1757368825138,3.2091,4321.7,4321.6,11.75028168]
[1757368825287,3.2091,4321.7,4321.6,13.27823352]
[1757368825288,2.46,4321.7,4321.6,13.27823352]
[1757368825482,2.46,4321.7,4321.6,11.75028168]
[1757368826246,3.6934,4321.7,4321.6,9.01527672]
[1757368826451,3.6934,4321.7,4321.6,12.86627672]
[1757368828754,3.6934,4321.7,4321.6,11.63508168]
[1757368828935,3.6934,4321.7,4321.6,12.86627672]
[1757368829537,3.6934,4321.7,4321.6,11.63508168]
[1757368830057,3.6934,4321.7,4321.6,2.47012389]
[1757368830263,4.19274,4321.7,4321.6,1.776]
[1757368830407,4.19274,4321.7,4321.6,5.627]
[1757368831327,4.19274,4321.7,4321.6,8.627]
[1757368831924,4.19274,4321.7,4321.6,6.851]
[1757368832359,4.19274,4321.7,4321.5,3.852]
[1757368832545,1.491174,4321.6,4321.5,3.852]
[1757368833059,1.785774,4321.6,4321.5,3.852]
[1757368834552,1.2365,4321.6,4321.5,3.852]
[1757368835138,1.2365,4321.6,4321.5,9.16601133]
[1757368835719,0.7564,4321.6,4321.5,9.16601133]
[1757368835917,2.46,4321.7,4321.6,5.31395779]
[1757368836309,2.46,4321.7,4321.6,5.42915779]
[1757368836510,2.46,4321.7,4321.6,5.72315779]
[1757368837208,2.46,4321.7,4321.6,6.41734753]
[1757368840427,2.46,4321.7,4321.6,9.97734753]
[1757368841844,2.46,4321.7,4321.6,10.27134753]
[1757368847738,2.461,4321.7,4321.6,10.27134753]
[1757368849290,2.461,4321.7,4321.6,9.97734753]
[1757368849788,2.7556,4321.7,4321.6,9.97734753]
[1757368850079,3.2174,4321.7,4321.6,9.97734753]
[1757368850283,3.6975,4321.7,4321.6,9.97734753]
[1757368851228,3.2174,4321.7,4321.6,9.97734753]
[1757368852359,2.461,4321.7,4321.6,10.27134753]
[1757368853855,2.461,4321.7,4321.6,9.97734753]
[1757368854246,2.461,4321.7,4321.6,10.27134753]
[1757368856451,2.461,4321.7,4321.6,9.97734753]
[1757368857900,3.2174,4321.7,4321.6,9.97734753]
[1757368858199,3.6975,4321.7,4321.6,9.97734753]
[1757368858396,3.2174,4321.7,4321.6,9.97734753]
[1757368858716,2.7556,4321.7,4321.6,9.97734753]
[1757368858910,2.461,4321.7,4321.6,9.97734753]
[1757368860106,3.2174,4321.7,4321.6,9.97734753]
[1757368860452,2.461,4321.7,4321.6,9.97734753]
[1757368861775,2.461,4321.7,4321.6,10.26684753]
[1757368864708,2.461,4321.7,4321.6,11.90958332]
[1757368865218,2.461,4321.7,4321.6,10.26684753]
[1757368865707,1e-08,4321.7,4321.6,10.74944753]
[1757368866009,1e-08,4321.8,4321.7,2.31390425]
[1757368866161,1e-08,4321.8,4321.7,7.08990425]
[1757368866362,1e-08,4321.8,4321.7,7.37940425]
[1757368866909,1e-08,4321.8,4321.7,8.07344786]
[1757368868331,88.56,4322.2,4322.1,2.3136901]
[1757368868533,88.56,4322.2,4322.1,11.21554648]
[1757368868734,88.56,4322.2,4322.1,10.92665186]
[1757368869044,88.56,4322.2,4322.1,11.62064729]
[1757368871818,88.56,4322.2,4322.1,11.7944515]
[1757368873033,88.56,4322.2,4322.1,12.5864515]
[1757368875186,88.56,4322.2,4322.1,14.23161073]
[1757368877020,88.8756,4322.2,4322.1,13.94211073]
[1757368877370,89.3477,4322.2,4322.1,13.94211073]
[1757368877579,89.0321,4322.2,4322.1,13.94211073]
[1757368878030,88.56,4322.2,4322.1,13.94211073]
[1757368879271,89.3381,4322.2,4322.1,11.79184897]
[1757368879412,89.8102,4322.2,4322.1,11.79184897]
[1757368880127,88.56,4322.2,4322.1,12.08134897]
[1757368880461,88.56,4322.2,4322.1,10.32098974]
[1757368880958,88.56,4322.2,4322.1,10.03148974]
[1757368882078,88.8766,4322.2,4322.1,6.18148974]
[1757368882217,89.8112,4322.2,4322.1,7.82627382]
[1757368882413,89.8112,4322.2,4322.1,11.50146961]
[1757368882841,89.8112,4322.2,4322.1,9.85668553]
[1757368883063,89.3391,4322.2,4322.1,9.85668553]
[1757368883234,89.8112,4322.2,4322.1,9.85668553]
[1757368889279,89.8112,4322.2,4322.1,11.50146961]
[1757368890290,89.3487,4322.2,4322.1,11.61666961]
[1757368890479,88.2379,4322.2,4322.1,11.90616961]
[1757368890790,63.961,4322.2,4322.1,12.07955756]
[1757368890917,23.371,4322.2,4322.1,12.07955756]
[1757368891317,24.6,4322.6,4322.1,12.07955756]
[1757368891318,4.03840181,4323.3,4322.2,18.28226156]
[1757368891422,50.43,4325.2,4324.4,24.86781811]
[1757368891423,57.81,4324.5,4324.4,24.86781811]
[1757368891620,11.095,4325.8,4325.2,1.13516607]
[1757368891621,29.01903938,4325.3,4325.2,1.13516607]
[1757368891878,18.67463145,4325.3,4325.2,26.26472549]
[1757368892051,7.30690245,4325.3,4325.2,27.13672549]
[1757368892370,1.65546701,4326.0,4325.8,5.92202684]
[1757368892516,11.9671653,4326.4,4326.3,3.54294395]
[1757368892722,1.25,4327.9,4327.5,3.102803]
[1757368892978,1.25,4327.9,4327.5,15.68947348]
[1757368893293,2.7627,4327.6,4327.5,15.70456251]
[1757368893586,3.2359,4327.6,4327.5,2.06331924]
[1757368893723,3.2359,4327.6,4327.4,1.21808306]
[1757368893921,2.7627,4327.6,4327.5,0.81220062]
[1757368894163,2.7627,4327.6,4327.5,4.73028761]
[1757368894378,3.2359,4327.6,4327.5,4.73028761]
[1757368894524,3.2359,4327.6,4327.2,0.69325612]
[1757368894719,0.4732,4327.5,4327.2,0.69325612]
[1757368894923,2.7627,4327.6,4327.2,0.69325612]
[1757368894924,0.3027,4327.3,4327.2,0.69325612]
[1757368895160,0.3027,4327.3,4326.6,1.775]
[1757368895427,2.37642696,4327.6,4327.4,2.31084114]
[1757368895622,2.37642696,4327.6,4327.5,24.670312]
[1757368895860,2.37642696,4327.6,4327.5,26.70235838]
[1757368896043,2.37642696,4327.6,4327.5,24.670312]
[1757368897566,2.37642696,4327.6,4327.5,26.68990095]
[1757368897865,1.1326646,4327.9,4327.6,3.792]
[1757368898073,1.1326646,4327.9,4327.8,3.0]
[1757368898226,1.1326646,4327.9,4327.8,4.61600051]
[1757368898570,1.9085646,4327.9,4327.8,3.0]
[1757368898976,1.6058646,4327.9,4327.8,3.0]
[1757368899144,1.01703304,4327.9,4327.8,3.0]
[1757368899543,1.01703304,4327.9,4327.8,20.58995482]
[1757368899783,1.01703304,4327.9,4327.8,22.60954377]
[1757368899992,0.53316604,4327.9,4327.8,22.60954377]
[1757368900273,0.53316604,4327.9,4327.8,19.04412476]
[1757368900494,0.53316604,4327.9,4327.8,23.99315482]
[1757368900781,0.53316604,4327.9,4327.8,24.10835482]
[1757368901364,0.53316604,4327.9,4327.8,24.56715482]
[1757368901569,2.35287161,4328.1,4327.8,24.56715482]
[1757368901767,2.35287161,4328.1,4327.9,15.63874962]
[1757368902077,2.82607161,4328.1,4328.0,21.681512]
[1757368902279,3.12877161,4328.1,4328.0,21.681512]
[1757368902483,2.35287161,4328.1,4328.0,21.681512]
[1757368902645,2.35287161,4328.1,4328.0,23.99204804]
[1757368902839,2.35287161,4328.1,4328.0,24.68498711]
[1757368904887,2.82607161,4328.1,4328.0,24.68498711]
[1757368905240,2.82607161,4328.1,4328.0,22.37445107]
[1757368905444,3.12877161,4328.1,4328.0,8.34593907]
[1757368905674,3.12877161,4328.1,4328.0,8.82844821]
[1757368906666,1.8818259,4328.1,4328.0,11.13898425]
[1757368906987,4.92,4328.4,4328.1,3.0]
[1757368907308,0.3027,4328.2,4328.0,3.00347511]
[1757368907509,0.3027,4328.2,4328.1,5.32002276]
[1757368907647,0.3027,4328.2,4328.1,8.11054873]
[1757368907982,0.7915,4328.2,4328.1,8.8035102]
[1757368908865,0.3027,4328.2,4328.1,8.8035102]
[1757368909065,0.7759,4328.2,4328.1,8.8035102]
[1757368910049,0.3027,4328.2,4328.1,8.8035102]
[1757368910506,0.7915,4328.2,4328.1,8.8035102]
[1757368910991,0.3027,4328.2,4328.1,8.8035102]
[1757368911349,0.3027,4328.2,4328.1,10.41374782]
[1757368911550,3.82556047,4328.4,4328.2,3.0]
[1757368911868,3.35236047,4328.4,4328.3,8.08754873]
[1757368912067,3.65506047,4328.4,4328.3,8.08754873]
[1757368913027,4.14386047,4328.4,4328.3,8.08754873]
[1757368914496,4.14386047,4328.4,4328.3,9.69778635]
[1757368914697,4.14386047,4328.4,4328.3,8.08754873]
[1757368915502,4.58806047,4328.4,4328.3,9.69778635]
[1757368916101,4.14386047,4328.4,4328.3,9.69778635]
[1757368916474,4.14386047,4328.4,4328.3,8.08754873]
[1757368916935,3.35236047,4328.4,4328.3,8.08754873]
[1757368917279,3.62786047,4328.4,4328.3,8.08754873]
[1757368917484,3.25263512,4328.4,4328.3,8.08754873]
[1757368918020,2.97713512,4328.4,4328.3,38.34994873]
[1757368918422,12.16008212,4328.6,4328.4,3.0]
[1757368918733,12.16008212,4328.6,4328.5,3.48254873]
[1757368918911,12.46278212,4328.6,4328.5,8.04954873]
[1757368919252,13.39578212,4328.6,4328.5,8.04954873]
[1757368919916,13.39578212,4328.6,4328.5,10.77250144]
[1757368920320,13.39578212,4328.6,4328.5,8.74251501]
[1757368920493,13.39578212,4328.6,4328.5,11.58634091]
[1757368920909,13.39578212,4328.6,4328.5,8.74251501]
[1757368921235,12.95158212,4328.6,4328.5,8.74251501]
[1757368921620,11.08126181,4328.6,4328.5,8.74251501]
[1757368921798,10.59246181,4328.6,4328.5,8.74251501]
[1757368925727,10.59246181,4328.6,4328.5,11.58634091]
[1757368927946,10.59246181,4328.6,4328.5,11.70154091]
[1757368928516,7.47523626,4328.6,4328.5,11.70154091]
[1757368929042,7.47523626,4328.6,4328.5,8.37516628]
[1757368929526,9.75483626,4328.6,4328.5,8.37516628]
[1757368930142,7.47523626,4328.6,4328.5,8.37516628]
[1757368932944,9.75483626,4328.6,4328.5,8.37516628]
[1757368933346,10.19903626,4328.6,4328.5,8.37516628]
[1757368933548,14.68503626,4328.6,4328.1,0.002]
[1757368933858,16.99527382,4328.6,4328.4,0.82183728]
[1757368933999,0.4442,4328.5,4327.7,3.0]
[1757368934313,0.4442,4328.5,4327.6,4.486]
[1757368934314,0.2976,4327.8,4327.6,4.486]
[1757368934646,1.5738,4327.7,4327.6,4.486]
[1757368934850,1.8714,4327.7,4327.6,7.486]
[1757368935151,2.3107496,4327.6,4327.3,0.002]
[1757368935354,7.60515327,4327.5,4327.2,0.61510857]
[1757368935503,0.792,4327.0,4326.8,0.027]
[1757368935704,2.31123026,4326.7,4326.1,0.02]
[1757368935917,0.2976,4326.2,4326.1,0.02]
[1757368936139,4.7766,4326.2,4326.1,0.02]
[1757368936305,5.7066,4326.2,4326.1,0.02]
[1757368936949,1.773,4326.7,4326.1,0.02]
[1757368937102,0.4623,4326.7,4326.1,3.02]
[1757368937309,0.2596,4326.2,4326.1,3.02]
[1757368938103,0.4623,4326.7,4326.1,3.02]
[1757368939451,0.4623,4326.7,4326.1,3.022]
[1757368940022,3.0533,4327.8,4326.2,2.3383]
[1757368940207,4.9313,4327.7,4326.4,3.0]
[1757368940405,4.9313,4327.7,4326.4,3.0231139]
[1757368940406,0.4623,4327.6,4326.4,3.0231139]
[1757368940833,0.4623,4327.5,4326.4,3.0231139]
[1757368941202,0.4623,4327.5,4326.4,3.0]
[1757368941403,0.2596,4326.5,4326.4,3.0]
[1757368942055,0.7198,4326.5,4326.4,3.0]
[1757368942256,0.792,4326.4,4326.1,0.022]
[1757368942441,2.31149738,4326.2,4326.1,0.022]
[1757368942670,0.2616,4326.2,4326.1,0.022]
[1757368943114,3.53869738,4326.2,4326.1,0.022]
[1757368943545,1.2272,4326.2,4326.1,0.022]
[1757368944516,3.53869738,4326.2,4326.1,0.022]
[1757368944688,4.33069738,4326.2,4326.1,0.022]
[1757368945495,8.77269738,4326.2,4326.1,0.022]
[1757368946479,8.94377239,4326.2,4326.1,0.022]
[1757368947069,11.94377239,4326.2,4326.1,1e-08]
[1757368950402,11.94377239,4326.2,4325.8,1e-08]
[1757368950403,3.792,4326.1,4325.8,1e-08]
[1757368950609,2.31245155,4324.5,4323.9,2.3383]
[1757368950902,2.0375,4324.2,4323.9,2.3383]
[1757368951098,6.4555,4324.2,4323.9,2.3383]
[1757368951404,6.4555,4324.2,4324.1,3.0758]
[1757368951405,1.774,4324.2,4324.1,3.0758]
[1757368951612,6.189,4324.2,4324.1,3.0758]
[1757368951996,6.4739,4324.2,4324.1,0.02]
[1757368952865,2.31272693,4323.9,4323.1,2.3021]
[1757368953067,7.53907247,4323.9,4323.1,2.3021]
[1757368953295,7.53907247,4323.9,4323.1,0.02]
[1757368953296,8.23602693,4323.9,4323.1,0.02]
[1757368954505,8.23602693,4323.9,4323.1,2.3021]
[1757368956702,4.395,4323.9,4323.8,3.0808]
[1757368957923,4.08656908,4324.2,4323.8,3.0808]
[1757368958148,4.395,4324.1,4323.9,2.7435]
[1757368958283,4.395,4324.1,4324.0,0.3123]
[1757368958630,1.774,4324.2,4324.0,2.5944]
[1757368958827,1.774,4324.2,4324.1,0.4614]
[1757368958983,6.161,4324.2,4324.1,0.4614]
[1757368959180,6.161,4324.2,4324.1,0.3123]
[1757368959379,6.161,4324.2,4324.1,2.5944]
[1757368960024,6.161,4324.2,4324.1,3.0558]
[1757368960529,6.161,4324.2,4324.1,3.171]
[1757368961027,8.75847442,4324.2,4323.8,0.027]
[1757368961326,9.19357442,4324.2,4323.8,0.027]
[1757368961682,0.02334554,4324.1,4323.8,0.027]
[1757368962024,4.379,4324.0,4323.8,0.027]
[1757368962189,0.02334554,4323.9,4323.8,0.027]
[1757368964492,0.30974554,4323.9,4323.8,0.027]
[1757368965454,1.10174554,4323.9,4323.8,0.027]
[1757368965599,3.84807247,4323.9,4323.8,0.027]
[1757368966786,3.1049944,4323.4,4323.3,0.002]
[1757368967009,9.26433994,4323.4,4323.3,0.002]
[1757368967241,2.8789,4323.4,4323.3,0.002]
[1757368967406,1.775,4323.4,4323.3,0.3143]
[1757368967762,8.7568944,4323.4,4323.3,0.002]
[1757368967956,9.9572944,4323.4,4323.3,0.002]
[1757368968654,5.6002944,4323.4,4323.3,0.002]
[1757368968854,5.6002944,4323.4,4323.3,3.0578]
[1757368968855,6.133,4323.4,4323.3,3.0578]
[1757368969056,8.7558944,4323.4,4323.3,0.002]
[1757368969230,9.9562944,4323.4,4323.3,0.002]
[1757368969657,1.775,4323.4,4323.3,3.0578]
[1757368969863,6.13,4323.4,4323.3,3.0578]
[1757368970031,6.13,4323.4,4323.3,2.5964]
[1757368970221,1.775,4323.4,4323.3,2.5964]
[1757368970417,12.199,4324.4,4323.4,3.0]
[1757368970638,12.199,4324.4,4323.6,3.0]
[1757368970639,1.775,4323.7,4323.6,3.0]
[1757368970838,6.13,4323.7,4323.6,3.0558]
[1757368971234,1.775,4323.7,4323.6,3.0558]
[1757368971441,6.128,4323.7,4323.6,3.0558]
[1757368971835,6.128,4323.7,4323.3,0.002]
[1757368971836,8.72573391,4323.7,4323.3,0.002]
[1757368972036,1.775,4323.7,4323.6,0.3123]
[1757368972227,6.128,4323.7,4323.6,3.0558]
[1757368972422,1.775,4323.7,4323.6,2.2821]
[1757368972644,6.127,4323.7,4323.6,0.3123]
[1757368972849,0.792,4323.6,4323.3,0.002]
[1757368973036,3.1049944,4323.4,4323.3,0.002]
[1757368973236,3.41473994,4323.4,4323.3,0.002]
[1757368973442,0.02334554,4323.4,4323.3,0.002]
[1757368973640,4.355,4323.4,4323.3,0.002]
[1757368974229,1.775,4323.7,4323.3,0.3143]
[1757368974435,4.354,4323.6,4323.4,2.2821]
[1757368974642,4.37734554,4323.6,4323.3,0.002]
[1757368974824,2.31294962,4323.5,4323.3,0.002]
[1757368975155,4.37634554,4323.4,4323.3,0.002]
[1757368975363,3.84863994,4323.4,4323.3,0.002]
[1757368975562,8.20163994,4323.4,4323.3,0.002]
[1757368975763,7.7698944,4323.4,4323.3,0.002]
[1757368976325,8.1782944,4323.4,4323.3,0.002]
[1757368976829,7.7698944,4323.4,4323.3,0.002]
[1757368977061,3.4168944,4323.4,4323.3,0.002]
[1757368977246,7.78923994,4323.4,4323.3,0.002]
[1757368977447,2.3131014,4323.2,4323.1,0.02]
[1757368977671,6.67744694,4323.2,4323.1,0.02]
[1757368977974,4.341,4323.2,4323.1,3.0758]
[1757368978265,4.341,4323.2,4323.1,2.6144]
[1757368979178,4.341,4323.2,4323.1,0.02]
[1757368979179,7.7310014,4323.2,4323.1,0.02]
[1757368979724,8.1661014,4323.2,4323.1,0.02]
[1757368979929,8.6735014,4323.2,4323.1,0.02]
[1757368980472,8.1661014,4323.2,4323.1,0.02]
[1757368980843,3.8251014,4323.2,4323.1,0.02]
[1757368981047,4.337,4323.2,4323.1,0.3237]
[1757368981258,4.337,4323.2,4323.1,2.7246]
[1757368981458,6.6501014,4323.2,4323.1,0.02]
[1757368981697,0.792,4323.6,4323.1,0.3237]
[1757368981896,0.19746505,4324.8,4323.2,2.8745]
[1757368981897,0.4589,4324.7,4323.2,2.8745]
[1757368982092,1.775,4323.5,4323.2,2.8745]
[1757368982294,4.337,4323.4,4323.2,2.4009]
[1757368982482,4.337,4323.4,4323.3,0.4736]
[1757368982796,4.337,4323.4,4323.3,4.59403368]
[1757368982797,4.334,4323.4,4323.3,4.59403368]
[1757368983103,4.333,4323.4,4323.3,3.1782]
[1757368983287,4.333,4323.4,4323.3,6.1782]
[1757368983489,12.2,4324.4,4323.4,3.0]
[1757368983727,1.775,4323.8,4323.6,3.0]
[1757368983856,4.332,4323.7,4323.5,2.31292495]
[1757368984057,1.775,4323.8,4323.7,3.0]
[1757368984293,6.107,4323.8,4323.7,10.13207362]
[1757368984500,6.107,4323.8,4323.7,8.49103391]
[1757368985260,1.775,4323.8,4323.7,8.49103391]
[1757368985763,6.1,4323.8,4323.7,8.49103391]
[1757368985958,6.1,4323.8,4323.7,6.1782]
[1757368986215,6.1,4323.8,4323.7,7.81733096]
[1757368986389,1.775,4323.8,4323.7,6.1782]
[1757368986588,6.097,4323.8,4323.7,10.13015241]
[1757368986792,1.775,4323.8,4323.7,33.1782]
[1757368986958,6.098,4323.8,4323.7,39.28303391]
[1757368987160,6.098,4323.8,4323.7,36.1782]
[1757368987476,1.775,4323.8,4323.7,38.49103391]
[1757368987675,6.096,4323.8,4323.7,38.49103391]
[1757368987990,1.775,4323.8,4323.7,38.60623391]
[1757368988188,6.096,4323.8,4323.7,38.60623391]
[1757368988802,5.546,4324.4,4324.0,2.3126349]
[1757368989005,1.775,4324.3,4324.2,5.31256648]
[1757368989245,2.27644608,4324.3,4324.2,5.31256648]
[1757368989409,2.27644608,4324.3,4324.2,7.36831446]
[1757368989808,2.27644608,4324.3,4324.2,10.24281446]